Cogmind - Beta 10.2 @@@ ROGUE MODE // 2021.03.19 @ 11:36:23 Player: BOTHUNTER Result: Destroyed by P-60 Hacker with Shock Rifle Performance ------------- Evolutions (3) 1500 Regions Visited (11) 2200 Robots Destroyed (55) 275 Value Destroyed (1824) 1824 Prototype IDs (6) 120 Alien Tech Used (0) 0 Bonus (2349) 2349 TOTAL SCORE: 8268 Bonus ------- High Alert Combat Kills 46 Follower Combat Kills 326 Entered Garrisons 600 Used RIF Installer 1500 Aligned with FarCom 300 Friendly Fire -423 Cogmind --------- Core Integrity 0/700 Matter 159/300 Energy 81/100 System Corruption 5% Temperature Cool (0) Movement Flying (32) Location -7/Factory Parts ------- > --- POWER (1) -------- (None) > --- PROPULSION (2) --- Improved VTOL Module Improved Cesium-ion Thruster > --- UTILITY (8) ------ Enhanced Optical Array Modified TNC Weapon Cycler Improved System Shield Relay Coupler [NC] (41) > --- WEAPON (2) ------- Gauss Rifle > --- INVENTORY (4) ---- Hacking Suite Relay Coupler [Brawler] (29) Shock Rifle Peak State ------------ > --- POWER ------------ (None) > --- PROPULSION ------- Improved Cesium-ion Thruster Improved Cesium-ion Thruster > --- UTILITY ---------- Medium Storage Unit Modified TNC System Shield Improved System Shield Relay Coupler [NC] Relay Coupler [Swarmer] Relay Coupler [Grunt] Relay Coupler [Sentry] > --- WEAPON ----------- EMP Blaster Power Maul > --- INVENTORY -------- Improved VTOL Module Improved VTOL Module Improved Cesium-ion Thruster Hacking Suite Relay Coupler [Grunt] Relay Coupler [Brawler] Relay Coupler [Behemoth] EMP Blaster [Rating: 45] Favorites ----------- Power Light Ion Engine Engine Light Ion Engine Power Core Light Nuclear Core Propulsion Improved VTOL Module Flight Unit Improved VTOL Module Utility Modified TNC Device Weight Redist. System Storage Medium Storage Unit Processor Modified TNC Hackware System Shield Protection Core Shielding Weapon Improved Datajack Energy Gun Improved EM Shotgun Ballistic Gun Heavy Assault Rifle Ballistic Cannon Light Cannon Launcher Rocket Launcher Special Weapon Welding Torch Impact Weapon Great Maul Slashing Weapon Axe Special Melee Weapon Improved Datajack Build | -11 -10 -10 -10 -9 -8 -8 -8 -8 -7 -7 -7 ------- Run | Scr Mat Min Exi Min Mat Gar Mat Gar Fac Gar Fac Slots Evolved 6 | . . . . . 4 . . . 2 . . Power . | . . . . . . . . . . . . Propulsion . | . . . . . . . . . . . . Utility 6 | . . . . . 4 . . . 2 . . Weapon . | . . . . . . . . . . . . Parts Attached 81 | 1 4 3 2 6 22 7 1 8 12 6 9 Power 6 | . . . . . 2 . . 2 1 1 . Engine 4 | . . . . . 1 . . 2 1 . . Core 2 | . . . . . 1 . . . . 1 . Reactor . | . . . . . . . . . . . . Propulsion 10 | . . 1 . . 2 1 . . 3 1 2 Treads . | . . . . . . . . . . . . Leg . | . . . . . . . . . . . . Wheel . | . . . . . . . . . . . . Hover . | . . . . . . . . . . . . Flight 10 | . . 1 . . 2 1 . . 3 1 2 Utility 29 | . 1 1 2 . 7 3 . 6 3 3 3 Device 4 | . . . . . 2 . . . . . 2 Storage 3 | . . 1 . . 1 . . . 1 . . Processor 6 | . 1 . 2 . 1 . . 1 . . 1 Hackware 15 | . . . . . 2 3 . 5 2 3 . Protection 1 | . . . . . 1 . . . . . . Artifact . | . . . . . . . . . . . . Weapon 36 | 1 3 1 . 6 11 3 1 . 5 1 4 Energy Gun 9 | 1 . . . 1 4 . . . . . 3 Energy Cannon . | . . . . . . . . . . . . Ballistic Gun 2 | . . . . . 1 . . . . . 1 Ballistic Cannon 2 | . . . . 2 . . . . . . . Launcher 6 | . . 1 . 2 . 1 . . 1 1 . Special Weapon 3 | . 2 . . 1 . . . . . . . Impact Weapon 4 | . . . . . . . 1 . 3 . . Slashing Weapon 6 | . . . . . 5 1 . . . . . Piercing Weapon . | . . . . . . . . . . . . Special Melee Weapon 4 | . 1 . . . 1 1 . . 1 . . Unidentified Prototypes 6 | . . . 2 . 3 . . . 1 . . Parts Lost 19 | . 1 . . 1 2 . . 1 3 7 4 Power 5 | . . . . . 1 . . 1 2 . 1 Propulsion 3 | . . . . 1 . . . . . 1 1 Utility 5 | . . . . . . . . . . 3 2 Weapon 6 | . 1 . . . 1 . . . 1 3 . Highest Loss Streak 7 | . 1 . . 1 1 . . 1 2 7 3 Average Slot Usage (%) 71 | . 25 42 42 46 41 99 99 96 84 81 80 Engine 3 | . . . . . 1 9 9 6 2 . . Flight 12 | . . 11 14 10 3 18 18 18 14 14 15 Device 1 | . . . . . 1 7 . . . . 6 Storage 3 | . . 10 14 14 1 . . . 4 7 6 Processor 14 | . 9 14 14 14 15 18 18 18 9 7 14 Hackware 21 | . . . . . 3 20 36 35 43 40 22 Protection 1 | . . . . . 3 7 . . . . . Energy Gun 1 | . 13 . . . 4 . . . . . 7 Impact Weapon 2 | . . . . . . . 5 9 6 4 . Slashing Weapon 2 | . . . . . 4 8 3 . . . . Special Melee Weapon 3 | . . . . . 1 6 9 9 1 . . Naked Turns . | . . . . . . . . . . . . Heaviest Build 20 | 2 3 4 4 8 14 11 8 8 17 15 20 Greatest Support 18 | 3 3 4 4 4 18 12 12 12 16 16 14 Greatest Overweight (x) 6 | . . 1 . 2 4 3 . 1 4 4 6 Average Overweight (x) . | . . . . . . . . . . . . Largest Inventory Capacity 8 | 4 4 6 6 6 8 4 4 4 8 8 8 Average Capacity 5 | 4 4 5 6 6 4 4 4 4 6 8 7 Most Carried 8 | 2 4 6 6 6 6 4 4 4 8 8 8 Average Carried 4 | 1 3 5 6 5 4 3 4 3 6 7 7 Final Capacity 8 | 4 4 6 6 6 4 4 4 4 8 8 4 Final Carried 8 | 2 4 6 6 5 4 4 4 4 8 7 3 Class Distribution -------------------- 26% | Mutant 14% | Hacker-Scout 11% | Bothacker-Sprinter 10% | Scout 9% | Bothacker-Scout 9% | Hacker-Mutant 8% | Hacker-Sprinter 4% | Skirmisher Dominant Class ---------------- Mutant | -10/Materials Mutant | -10/Mines Mutant | -10/Exiles Mutant | -9/Mines Scout | -8/Materials Hacker-Scout | -8/Garrison Bothacker-Scout | -8/Materials Bothacker-Sprinter | -8/Garrison Hacker-Mutant | -7/Factory Hacker-Sprinter | -7/Garrison Skirmisher | -7/Factory Resources | -11 -10 -10 -10 -9 -8 -8 -8 -8 -7 -7 -7 ----------- Run | Scr Mat Min Exi Min Mat Gar Mat Gar Fac Gar Fac Matter Collected 1170 | 210 20 55 . 204 221 40 72 209 125 14 . Remotely . | . . . . . . . . . . . . Salvage Created 1915 | 235 20 15 . 113 898 40 54 141 302 . 97 Parts 84 | 22 2 5 . 8 33 3 . 6 4 . 1 Haulers Intercepted 4 | . . . . . 2 . . . 2 . . Recyclers Shooed 4 | 1 . . . . 1 . . . . . 2 Parts Field Recycled . | . . . . . . . . . . . . Retrieved Matter . | . . . . . . . . . . . . Parts Self-Destructed . | . . . . . . . . . . . . Prevented . | . . . . . . . . . . . . Kills | -11 -10 -10 -10 -9 -8 -8 -8 -8 -7 -7 -7 ------- Run | Scr Mat Min Exi Min Mat Gar Mat Gar Fac Gar Fac Combat Hostiles Destroyed 36 | . . 3 . 15 10 5 . 3 . . . Melee 9 | . . . . . 6 1 . 2 . . . Guns 1 | . . . . . 1 . . . . . . Cannons 3 | . . . . 3 . . . . . . . AOE 21 | . . 3 . 12 2 4 . . . . . Classes Destroyed 13 | 3 1 1 . 2 4 1 1 . . . . Worker 6 | 2 . . . 1 1 . . . 2 . . Tunneler 6 | 5 . . . . . . . . 1 . . Hauler 4 | . . . . . 2 . . . 2 . . Recycler 5 | 1 . . . . 2 . . . 1 . 1 Operator 2 | . . . . . . . 1 . 1 . . Watcher 6 | . 1 . . . 3 . 1 . 1 . . Swarmer 10 | . . 3 . 3 . 2 . 2 . . . Grunt 11 | . . . . 1 6 2 . 2 . . . Brawler 1 | . . . . . . 1 . . . . . Duelist 1 | . . . . . 1 . . . . . . Sentry 2 | . . . . . 2 . . . . . . Hunter 1 | . . . . . 1 . . . . . . Assembled 12 | . . . . 12 . . . . . . . Best Kill Streak 10 | 6 1 3 . 10 3 3 1 1 2 . 1 Combat Bots Only 10 | . . 3 . 10 3 3 . 1 . . . Max Kills in Single Turn 4 | 1 1 3 . 4 1 1 1 1 1 . 1 Gunslinging . | . . . . . . . . . . . . Exploded 3 | . . 3 . 3 1 1 . . . . . Melee 1 | . . . . . 1 1 . 1 . . . Uniques/NPCs Destroyed . | . . . . . . . . . . . . Combat | -11 -10 -10 -10 -9 -8 -8 -8 -8 -7 -7 -7 -------- Run | Scr Mat Min Exi Min Mat Gar Mat Gar Fac Gar Fac Damage Taken 2864 | . 87 7 . 104 738 94 32 166 369 820 447 Core 1294 | . 37 . . 48 426 23 . 52 143 323 242 Absorbed by Shields 16 | . . . . . . . . . 16 . . Core Remaining (%) 58 | 100 . . . 66 . . . 8 . . . Volleys Fired 127 | 26 5 2 . 18 41 16 . . . 1 18 Largest 2 | 1 1 1 . 2 2 1 . . . 1 2 Hottest 100 | 50 50 30 . 55 100 33 . . . 33 100 Shots Fired 144 | 26 5 2 . 19 54 16 . . . 1 21 Gun 106 | 26 5 . . . 54 . . . . . 21 Cannon 11 | . . . . 11 . . . . . . . Launcher 26 | . . 2 . 7 . 16 . . . 1 . Special 1 | . . . . 1 . . . . . . . Kinetic 27 | . . . . 11 2 . . . . . 14 Thermal 33 | 26 5 . . 1 . . . . . . 1 Explosive 25 | . . 2 . 7 . 16 . . . . . Electromagnetic 59 | . . . . . 52 . . . . 1 6 Robot Hit Streak 10 | 6 8 9 . 10 10 1 . . . . 8 Robot Miss Streak 7 | 3 . . . 3 7 3 . . . . 1 Penetration Max . | . . . . . . . . . . . . Secondary Targets . | . . . . . . . . . . . . Shots Hit Robots 168 | 12 6 1 . 10 61 5 5 19 33 . 16 Core Hits 80 | 9 3 3 . 23 28 8 . 2 1 1 2 Critical Hits 2 | . . . . 1 . 1 . . . . . Critical Kills 2 | . . . . 1 . 1 . . . . . Critical Parts Destroyed . | . . . . . . . . . . . . Melee Attacks 154 | . 1 . . . 39 8 18 39 45 4 . Impact 74 | . . . . . . . 11 22 37 4 . Slashing 50 | . . . . . 38 7 5 . . . . Piercing . | . . . . . . . . . . . . Sneak Attacks 26 | . . . . . 6 1 1 7 11 . . Combat Hostiles 10 | . . . . . . 1 1 5 3 . . Follow-up Attacks . | . . . . . . . . . . . . Damage Inflicted 6671 | 151 64 165 . 962 1926 653 185 636 1411 39 479 Guns 1478 | 151 63 . . . 829 . . . . . 435 Cannons 154 | . . . . 154 . . . . . . . Explosions 1772 | . . 165 . 808 142 574 . . . 39 44 Melee 3266 | . . . . . 955 79 185 636 1411 . . Ramming 1 | . 1 . . . . . . . . . . Kinetic 531 | . . . . 154 30 . . . . . 347 Thermal 433 | 151 63 . . . 142 . . . . . 77 Explosive 1547 | . . 165 . 808 . 574 . . . . . Electromagnetic 893 | . . . . . 799 . . . . 39 55 Impact 2094 | . . . . . . . 47 636 1411 . . Slashing 1172 | . . . . . 955 79 138 . . . . Piercing . | . . . . . . . . . . . . Highest Corruption 5 | . 1 1 1 1 . . . . . . 5 Average Corruption 1 | . 1 1 1 1 . . . . . . 2 Corruption Purged . | . . . . . . . . . . . . Effects 8 | . 1 1 1 4 . . . . . . 1 Message Errors 4 | . 1 1 . 1 . . . . . . 1 Data Loss (minor) 4 | . . . 1 3 . . . . . . . Overload Shots . | . . . . . . . . . . . . Overflow Damage 649 | . . . . 17 19 . 123 30 445 . 15 Projectiles . | . . . . . . . . . . . . Explosions 36 | . . . . 17 4 . . . . . 15 Melee 613 | . . . . . 15 . 123 30 445 . . Knockbacks 10 | . . . . 1 . . . 4 5 . . Impact 9 | . . . . . . . . 4 5 . . Kinetic 1 | . . . . 1 . . . . . . . Secondary . | . . . . . . . . . . . . Self-Inflicted Damage 94 | . . . . . 68 26 . . . . . Shots 3 | . . . . . 2 1 . . . . . Rammed 1 | . 1 . . . . . . . . . . Targets Rammed 1 | . 1 . . . . . . . . . . Kicked . | . . . . . . . . . . . . Crushed . | . . . . . . . . . . . . Highest Temperature 324 | . 14 . . . 324 1 . . . 12 132 Average Temperature 145 | . 14 . . . 176 1 . . . 7 68 Received Heat Transfer 471 | . 48 . . . 207 36 9 36 96 39 . Effects 1 | . . . . . 1 . . . . . . Damage (minor) 1 | . . . . . 1 . . . . . . Siege Activations . | . . . . . . . . . . . . Robots Corrupted 2 | . . . . . 2 . . . . . . Combat Hostiles 1 | . . . . . 1 . . . . . . Parts Fried 25 | . . . . . 12 . 2 2 9 . . Impact Corruptions 21 | . . . . . . . 1 2 18 . . Robots Melted . | . . . . . . . . . . . . Combat Hostiles . | . . . . . . . . . . . . Parts Melted 2 | 1 1 . . . . . . . . . . Heat Transferred 854 | 444 185 . . . 100 . . . . . 125 Parts Sabotaged . | . . . . . . . . . . . . Parts Stolen . | . . . . . . . . . . . . Parts Stripped . | . . . . . . . . . . . . Power Chain Reactions 2 | . . . . . 1 . . . . . 1 Missiles Intercepted . | . . . . . . . . . . . . Alert | -11 -10 -10 -10 -9 -8 -8 -8 -8 -7 -7 -7 ------- Run | Scr Mat Min Exi Min Mat Gar Mat Gar Fac Gar Fac Peak Influence 642 | 40 307 189 . 184 468 642 408 563 350 91 65 Initial 312 | . 26 119 . . 1 252 312 239 295 91 42 Average 228 | 12 117 178 . 108 201 418 368 334 207 78 54 Maximum Alert Level 2 | . 1 . . . 2 2 2 2 1 . . Low Security (%) 48 | 100 74 100 . 100 50 . . . 56 100 100 Level 1 38 | . 25 . . . 40 50 72 76 43 . . Level 2 13 | . . . . . 9 49 27 23 . . . Level 3 . | . . . . . . . . . . . . Level 4 . | . . . . . . . . . . . . Level 5 . | . . . . . . . . . . . . High Security . | . . . . . . . . . . . . Max Security . | . . . . . . . . . . . . Squads Dispatched 14 | . 4 . . 1 2 . 2 . 5 . . Investigation 8 | . 3 . . 1 2 . 1 . 1 . . Extermination 3 | . . . . . . . . . 3 . . Reinforcement 3 | . 1 . . . . . 1 . 1 . . Assault . | . . . . . . . . . . . . Garrison . | . . . . . . . . . . . . Intercept . | . . . . . . . . . . . . Construction Impeded . | . . . . . . . . . . . . Haulers Reinforced 1 | . . . . . . . . . 1 . . Alert ID Control Effect 3 | . . . . . . . . . 3 . . Stealth | -11 -10 -10 -10 -9 -8 -8 -8 -8 -7 -7 -7 --------- Run | Scr Mat Min Exi Min Mat Gar Mat Gar Fac Gar Fac Distress Signals 3 | . 1 . . . 2 . . . . . . Communications Jammed . | . . . . . . . . . . . . Distress Signals . | . . . . . . . . . . . . Times Spotted 141 | . 12 3 . 31 34 6 3 17 23 11 1 Peak Tracking Total 16 | . 7 3 . 16 3 3 2 6 7 9 1 Tactical Retreats 18 | . 3 . . 4 4 . . 1 5 1 . Traps | -11 -10 -10 -10 -9 -8 -8 -8 -8 -7 -7 -7 ------- Run | Scr Mat Min Exi Min Mat Gar Mat Gar Fac Gar Fac Traps Triggered 11 | . 2 . . . . 4 . 1 2 . 2 Indirectly . | . . . . . . . . . . . . Trap Hack Attempts 36 | . . . . . . 4 . 7 25 . . Triggered . | . . . . . . . . . . . . Disarmed 3 | . . . . . . . . 2 1 . . Reprogrammed 4 | . . . . . . 2 . . 2 . . Reused . | . . . . . . . . . . . . Traps Extracted . | . . . . . . . . . . . . Installed . | . . . . . . . . . . . . Triggered 1 | . . . . . 1 . . . . . . Machines | -11 -10 -10 -10 -9 -8 -8 -8 -8 -7 -7 -7 ---------- Run | Scr Mat Min Exi Min Mat Gar Mat Gar Fac Gar Fac Machines Disabled 7 | . . . . 1 2 2 . 2 . . . Max in Single Turn 2 | . . . . 1 2 1 . 1 . . . Garrison Access 1 | . . . . . . . . . 1 . . Garrison Relay 4 | . . . . . . 2 . 2 . . . Machines Sabotaged . | . . . . . . . . . . . . Garrisons Compromised . | . . . . . . . . . . . . Overloaded Fab Kills . | . . . . . . . . . . . . Fab Network Shutdowns . | . . . . . . . . . . . . Hacking | -11 -10 -10 -10 -9 -8 -8 -8 -8 -7 -7 -7 --------- Run | Scr Mat Min Exi Min Mat Gar Mat Gar Fac Gar Fac Machines Accessed 31 | . 5 . . 1 7 . 3 . 13 . 2 Terminals 19 | . 3 . . 1 5 . 2 . 7 . 1 Fabricators 1 | . . . . . . . . . 1 . . Repair Stations 1 | . . . . . . . . . 1 . . Recycling Units 5 | . 2 . . . 1 . . . 1 . 1 Scanalyzers 1 | . . . . . . . . . 1 . . Garrison Access 4 | . . . . . 1 . 1 . 2 . . Total Hacks 107 | . 9 . . 8 30 . 9 . 45 . 6 Successful 65 | . 7 . . 5 19 . 5 . 27 . 2 Failed 40 | . 1 . . 3 11 . 4 . 17 . 4 Catastrophic 6 | . . . . 1 . . 1 . 3 . 1 Database Lockouts 2 | . 1 . . . . . . . 1 . . Manual 69 | . 6 . 1 9 25 . 7 . 18 . 3 Terminals 68 | . 5 . . 8 25 . 5 . 22 . 3 Fabricators 8 | . . . . . . . . . 8 . . Repair Stations 4 | . . . . . . . . . 4 . . Recycling Units 12 | . 4 . . . 2 . . . 3 . 3 Scanalyzers 4 | . . . . . . . . . 4 . . Garrison Access 11 | . . . . . 3 . 4 . 4 . . Terminal Hacks 16 | . 2 . . 4 6 . 1 . 3 . . Part Schematic 1 | . . . . . 1 . . . . . . Robot Analysis 8 | . 1 . . 4 2 . . . 1 . . Terminal Index 1 | . . . . . . . . . 1 . . Locate Traps 2 | . 1 . . . 1 . . . . . . Recall Investigation 1 | . . . . . 1 . . . . . . Recall Extermination 1 | . . . . . . . . . 1 . . Zone Layout 2 | . . . . . 1 . 1 . . . . Fabricator Hacks 4 | . . . . . . . . . 4 . . Load Schematic 2 | . . . . . . . . . 2 . . Build 2 | . . . . . . . . . 2 . . Repair Station Hacks 4 | . . . . . . . . . 4 . . Scan Component 2 | . . . . . . . . . 2 . . Repair 2 | . . . . . . . . . 2 . . Recycling Unit Hacks 6 | . 1 . . . 1 . . . 2 . 2 Report Inventory 4 | . 1 . . . 1 . . . 1 . 1 Retrieve Components 2 | . . . . . . . . . 1 . 1 Scanalyzer 4 | . . . . . . . . . 4 . . Insert Component 2 | . . . . . . . . . 2 . . Analyze 2 | . . . . . . . . . 2 . . Garrison Access Hacks 5 | . . . . . 1 . 1 . 3 . . Unlock Access 3 | . . . . . 1 . 1 . 1 . . Seal Access 1 | . . . . . . . . . 1 . . Coupler Status 1 | . . . . . . . . . 1 . . Unauthorized Hacks 26 | . 4 . . 1 11 . 3 . 7 . . Terminals 22 | . 2 . . 1 9 . 3 . 7 . . Track 3 | . . . . 1 1 . 1 . . . . Assimilate 2 | . . . . . 1 . . . 1 . . Botnet 14 | . 2 . . . 5 . 2 . 5 . . Operators 3 | . . . . . 2 . . . 1 . . Fabricators . | . . . . . . . . . . . . Repair Stations . | . . . . . . . . . . . . Recycling Units 3 | . 2 . . . 1 . . . . . . Tunnel 3 | . 2 . . . 1 . . . . . . Scanalyzers . | . . . . . . . . . . . . Garrison Access 1 | . . . . . 1 . . . . . . Reprogram 1 | . . . . . 1 . . . . . . Data Cores Recovered . | . . . . . . . . . . . . Used . | . . . . . . . . . . . . Hacking Detections 18 | . 2 . . 1 5 . 3 . 6 . 1 Full Trace Events 4 | . . . . 1 1 . 1 . 1 . . Feedback Events . | . . . . . . . . . . . . Feedback Blocked . | . . . . . . . . . . . . Robot Schematics Acquired . | . . . . . . . . . . . . Robots Built . | . . . . . . . . . . . . Matter . | . . . . . . . . . . . . Time . | . . . . . . . . . . . . Total Robot Build Rating . | . . . . . . . . . . . . Part Schematics Acquired 3 | . . . . . 1 . . . 2 . . Parts Built 2 | . . . . . . . . . 2 . . Matter 248 | . . . . . . . . . 248 . . Time 62 | . . . . . . . . . 62 . . Total Part Build Rating 4 | . . . . . . . . . 4 . . Parts Repaired 2 | . . . . . . . . . 2 . . Time 98 | . . . . . . . . . 98 . . Parts Recycled . | . . . . . . . . . . . . Recycled Matter . | . . . . . . . . . . . . Retrieved Matter . | . . . . . . . . . . . . Retrieved Components 5 | . . . . . . . . . 3 . 2 Parts Scanalyzed 2 | . . . . . . . . . 2 . . Part Schematics Acquired 2 | . . . . . . . . . 2 . . Parts Damaged . | . . . . . . . . . . . . Bothacking | -11 -10 -10 -10 -9 -8 -8 -8 -8 -7 -7 -7 ------------ Run | Scr Mat Min Exi Min Mat Gar Mat Gar Fac Gar Fac Used RIF Installer 3 | . . . . . . 1 . 1 . 1 . Command Fork 1 | . . . . . . . . . . 1 . Alert ID Control 1 | . . . . . . . . 1 . . . Robots Hacked 18 | . 1 . . . . 1 2 9 5 . . Non-combat 2 | . 1 . . . . . . . 1 . . Combat 16 | . . . . . . 1 2 9 4 . . Robot Hacks Applied 21 | . 1 . . . . 1 2 11 6 . . parse_system 4 | . 1 . . . . . . 2 1 . . map_route 1 | . . . . . . . . . 1 . . scatter_targeting 1 | . . . . . . . . . 1 . . mark_system 1 | . . . . . . . 1 . . . . wipe_record 2 | . . . . . . . . 1 1 . . reboot_system 1 | . . . . . . . . 1 . . . overwrite_iff 3 | . . . . . . . . 3 . . . streamctrl_high 1 | . . . . . . . . 1 . . . formatsys_high 7 | . . . . . . 1 1 3 2 . . Relay Couplers Released 17 | . . . . . . 9 . 8 . . . Machine Destruction 17 | . . . . . . 9 . 8 . . . Attached 12 | . . . . . . 3 . 5 1 3 . Robots Rewired . | . . . . . . . . . . . . Allies Hacked 1 | . . . . . . . . . 1 . . Hacks Repelled . | . . . . . . . . . . . . Allies | -11 -10 -10 -10 -9 -8 -8 -8 -8 -7 -7 -7 -------- Run | Scr Mat Min Exi Min Mat Gar Mat Gar Fac Gar Fac Total Allies 18 | . . 2 . 3 1 1 1 7 3 . . Largest Group 3 | . . 2 2 3 1 1 2 2 2 . . Highest-Rated Group 48 | . . 42 42 40 10 15 30 30 48 . . Highest-Rated Ally 32 | . . 31 31 16 10 15 15 16 32 . . Total Orders 8 | . . . . 2 2 . . 4 . . . STAY 4 | . . . . 1 1 . . 2 . . . FOLLOW 3 | . . . . 1 1 . . 1 . . . GUARD 1 | . . . . . . . . 1 . . . Ally Attacks 65 | . . . . 29 . . 3 18 15 . . Total Damage 937 | . . . . 270 . . 71 263 333 . . Kills 13 | . . . . 3 . . 1 6 3 . . Allies Corrupted 2 | . . . . . . . . 1 1 . . Allies Melted . | . . . . . . . . . . . . Intel | -11 -10 -10 -10 -9 -8 -8 -8 -8 -7 -7 -7 ------- Run | Scr Mat Min Exi Min Mat Gar Mat Gar Fac Gar Fac Robot Analysis Total 8 | . 1 . . 4 2 . . . 1 . . Derelict Logs Recovered 2 | . . 1 . 1 . . . . . . . Drone Launches . | . . . . . . . . . . . . Drone Recoveries . | . . . . . . . . . . . . Exploration | -11 -10 -10 -10 -9 -8 -8 -8 -8 -7 -7 -7 ------------- Run | Scr Mat Min Exi Min Mat Gar Mat Gar Fac Gar Fac Turns Passed 6404 | 109 208 150 167 553 1347 849 201 875 1344 167 434 Spaces Moved 5434 | 66 347 205 339 421 1193 453 237 452 1243 116 362 Core 1600 | 66 347 31 . 71 826 3 . 28 180 6 42 Treads . | . . . . . . . . . . . . Legs . | . . . . . . . . . . . . Wheels . | . . . . . . . . . . . . Hover . | . . . . . . . . . . . . Flight 3834 | . . 174 339 350 367 450 237 424 1063 110 320 Fastest Speed 32 | 50 50 40 40 40 32 32 32 32 32 32 32 Average Speed 49 | 50 50 41 40 60 52 33 32 36 57 41 60 Slowest Speed 350 | 50 50 100 40 150 250 200 32 100 250 250 350 Overloaded Moves . | . . . . . . . . . . . . Propulsion Burnouts . | . . . . . . . . . . . . Robots Hopped 15 | . . 3 . 4 4 . . . 2 . 2 Cave-ins Triggered . | . . . . . . . . . . . . Exploration Rate (%) 38 | 4 47 47 64 49 65 45 23 39 26 43 12 Regions Visited 11 Branch Regions 3 Pre-discovered Areas 3 | . 2 . . . 1 . . . . . . Known Exits Taken 4 | . . . 1 . 1 . 1 . 1 . . Unknown Exits Taken 4 | 1 1 1 . 1 . . . . . . . Scrap Searched 3 | . . 2 . 1 . . . . . . . Spaces Dug 37 | . . . . 7 11 1 12 5 1 . . Terrain Destroyed 219 | . . 16 . 72 35 76 12 5 1 . 2 Melee 30 | . . . . . 11 1 12 5 1 . . Projectile . | . . . . . . . . . . . . AOE 189 | . . 16 . 72 24 75 . . . . 2 Terrain Rammed . | . . . . . . . . . . . . Walls Destroyed . | . . . . . . . . . . . . Machines Disabled . | . . . . . . . . . . . . Actions | -11 -10 -10 -10 -9 -8 -8 -8 -8 -7 -7 -7 --------- Run | Scr Mat Min Exi Min Mat Gar Mat Gar Fac Gar Fac Total 8752 | 115 373 264 369 699 1784 1123 329 1112 1800 224 560 Wait 2744 | 21 12 49 27 249 474 555 72 575 447 97 166 Move 5394 | 65 346 198 338 412 1185 452 236 451 1238 115 358 Hop 14 | . . 3 . 4 3 . . . 2 . 2 Pick Up 36 | 2 3 5 . 3 6 4 . 5 6 1 1 Fast Attach 46 | 1 3 1 2 2 16 2 1 2 9 1 6 Attach 24 | . 1 1 . 4 6 1 . 3 3 2 3 Detach 11 | . . . . 3 3 . . . 2 . 3 Swap 11 | . . 1 . . . 4 . 3 . 3 . Drop 44 | . 1 4 2 4 12 6 1 6 5 . 3 Fire 127 | 26 5 2 . 18 41 16 . . . 1 18 Melee 153 | . 1 . . . 38 8 18 39 45 4 . Ram 1 | . 1 . . . . . . . . . . Kick . | . . . . . . . . . . . . Crush . | . . . . . . . . . . . . Escape Stasis 104 | . . . . . . 70 . 18 16 . . Rewire 7 | . . . . . . 1 1 3 2 . . Trap 36 | . . . . . . 4 . 7 25 . . Miscellaneous . | . . . . . . . . . . . . Route ------- -11/Scrapyard -10/Materials (discovered 2 exits: [*Mat] / [*Min]) -10/Mines -10/Exiles (discovered 2 exits: *Min x2) -9/Mines (discovered 2 exits: *Mat x2) -8/Materials (discovered 3 exits: *Fac x2 / Gar) -8/Garrison (discovered 2 exits: *Mat x2) -8/Materials (discovered 2 exits: *Fac / Gar) -8/Garrison -7/Factory -7/Garrison -7/Factory (discovered 1 exit: [*Low]) History --------- Turn | Location | Event 3 | -11/Scrapyard | Discovered new exit (range 15) 110 | -11/Scrapyard | Entered Materials 158 | -10/Materials | Discovered new exit (range 13) 244 | -10/Materials | Central database locked down 253 | -10/Materials | Discovered new exit (range 15) 318 | -10/Materials | Entered Mines 329 | -10/Mines | Build established: Mutant 431 | -10/Mines | Received a Rocket Launcher from a helpful Derelict 443 | -10/Mines | Deemed a non-threat by the Exiles lab entrance 444 | -10/Mines | Discovered new exit (range 5) 468 | -10/Mines | Entered Exiles 468 | -10/Exiles | Accompanied by 2 allies 469 | -10/Exiles | Identified exit to Mines 498 | -10/Exiles | Led the pair of lost Derelicts to a safe place 498 | -10/Exiles | Met 8R-AWN 512 | -10/Exiles | Met EX-HEX 525 | -10/Exiles | Met EX-BIN 530 | -10/Exiles | Aligned with FarCom system 530 | -10/Exiles | Given EX-Vault access code 540 | -10/Exiles | Opened EX-Vault 542 | -10/Exiles | Found Prototype Processor 542 | -10/Exiles | Identified 0b10 Alert Chip 544 | -10/Exiles | Found Prototype Processor 544 | -10/Exiles | Identified Modified TNC 554 | -10/Exiles | Warned to stay clear of 0b10 Research branches 567 | -10/Exiles | Met EX-DEC 635 | -10/Exiles | Left Exiles lab with Modified TNC 635 | -10/Exiles | Entered Mines 636 | -9/Mines | Assisted by bots powering up and referring to "LRC-V3" 646 | -9/Mines | Found a damaged Exp. Sensor Array with a note attached 648 | -9/Mines | Found Prototype Device 844 | -9/Mines | Assembled infested the area 849 | -9/Mines | Assisted by a Guerilla fighting off Assembled 891 | -9/Mines | Destroyed 10 combat bots 1070 | -9/Mines | Discovered new exit (range 15) 1178 | -9/Mines | Discovered new exit (range 6) 1188 | -9/Mines | Entered Materials 1188 | -8/Materials | Evolved 4 slots: Utility x4 1803 | -8/Materials | Build established: Scout 1936 | -8/Materials | Discovered new exit (range 6) 2037 | -8/Materials | Core integrity fell below 50% 2060 | -8/Materials | Discovered new exit (range 6) 2520 | -8/Materials | Identified exit to Garrison 2526 | -8/Materials | Build established: Hacker-Scout 2535 | -8/Materials | Entered Garrison 2874 | -8/Garrison | Triggered checkpoint 2878 | -8/Garrison | Garrison Relay disabled 2951 | -8/Garrison | Triggered checkpoint 2991 | -8/Garrison | Core integrity fell below 20% 3199 | -8/Garrison | Discovered new exit (range 11) 3232 | -8/Garrison | Discovered new exit (range 10) 3236 | -8/Garrison | Installed Relay Interface Framework 3324 | -8/Garrison | Triggered checkpoint 3335 | -8/Garrison | Garrison Relay disabled 3384 | -8/Garrison | Entered Materials 3384 | -8/Materials | Accompanied by 1 ally 3509 | -8/Materials | Discovered new exit (range 20) 3559 | -8/Materials | Identified exit to Garrison 3585 | -8/Materials | Entered Garrison 3595 | -8/Garrison | Build established: Bothacker-Scout 3818 | -8/Garrison | Triggered checkpoint 3928 | -8/Garrison | Garrison Relay disabled 3972 | -8/Garrison | Triggered checkpoint 4268 | -8/Garrison | Triggered checkpoint 4416 | -8/Garrison | Triggered checkpoint 4420 | -8/Garrison | Garrison Relay disabled 4433 | -8/Garrison | Discovered new exit (range 12) 4446 | -8/Garrison | Build established: Bothacker-Sprinter 4459 | -8/Garrison | Expanded RIF knowledge: Alert ID Control 4460 | -8/Garrison | Entered Factory 4460 | -7/Factory | Evolved 2 slots: Utility x2 4573 | -7/Factory | Repaired Imp. Datajack 4634 | -7/Factory | Repaired Imp. VTOL Module 4829 | -7/Factory | Central database locked down 5441 | -7/Factory | Fabricated EMP Blaster? 5658 | -7/Factory | Identified exit to Garrison 5755 | -7/Factory | Fabricated EMP Blaster? 5804 | -7/Factory | Entered Garrison 5937 | -7/Garrison | Core integrity fell below 50% 5952 | -7/Garrison | Triggered checkpoint 5953 | -7/Garrison | Triggered checkpoint 5965 | -7/Garrison | Discovered new exit (range 8) 5969 | -7/Garrison | Expanded RIF knowledge: Command Fork 5971 | -7/Garrison | Entered Factory 5985 | -7/Factory | Lost 7 parts (1n3u3w) 5989 | -7/Factory | Discovered new exit (range 19) 6338 | -7/Factory | Core integrity fell below 20% 6405 | -7/Factory | Destroyed by P-60 Hacker with Shock Rifle Last Messages --------------- Imp. Titanium Leg Gatling Laser 06263_ Acquired Gatling Laser. 06278_ Destroyed Mining Laser. 06301_ Dropped Gatling Laser. 06328_ Triggered Shock Trap. 06328_ The floor emits a surge of raw power. 06328_ System corrupted (+1). 06346_ O>P13#O|PTXL32<9GH 0ON#SDFDG38&ZMUUZ 06369_ Acquired Gauss Rifle. 06380_ Slug penetrates P-60 Hacker. 06383_ Med. Storage Unit destroyed. 06384_ Slug penetrates P-60 Hacker. 06386_ Slug penetrates Nuclear Reactor. 06387_ Slug penetrates P-60 Hacker. 06387_ Destroyed Shock Rifle. 06389_ Relay Coupler [Swarmer] destroyed. 06389_ Slug penetrates P-60 Hacker. 06397_ Destroyed Target Analyzer. 06401_ Imp. VTOL Module destroyed. Map ----- +----------------------------------------------------+ | #????####?????????????????????????????????? | | #????" ?????????????????????????????????? | | #??"R" ?????????????????????????????????? | | #?"" " ""????????????????????????????????? | | # ""???#????????????????????????????? | | # """" #????????????????????????????? | | # ! """" #????????????????Y???????????? | | # #????????????????????????????? | | # """" """" #????????????????????????????? | | # """" """" #????????????????????????????? | | # """" """" #????????????????????????????? | | #??"""" """"??????????????????????????????? | | ##???? ????????????????????????????????? | | ########/###???????? #?????????????????????? | | ####### #?????????????????????? | | +?????????????????????? | | #?????????????????????? | | #?????????????????????? | | ######## ##?????????????????????? | | ######### ##?######+#######????????????????? | | ????????# #??# #????????????????? | | ????????# #??# """ """ #????????????????? | | ????????# #??# """ """ #????????????????? | | ######### #### """ """ #????????????????? | | # =[#????????????????? | | # """ """@#????????????????? | | + """ """!#????????????????? | | # """ """p#????????????????? | | # #????????????????? | | ##+######### # #????????????????? | | ???????????# # #????????????????? | | ???????????# # #????????????????? | | ???????????# ##############????????????????? | | ???????????# #?????????????????????????????? | | ???????????# #?????????????????????????????? | | ???????????# #?????????????????????????????? | | ???????????# #?????????????????????????????? | | ??????????? ?????????????????????????????? | | ???????????#+#?????????????????????????????? | | ???????????????????????????????????????????? | | ???????????????????????????????????????????? | | ???????????????????????????o???????????????? | | ???????????????????????????????????????????? | | ???????????????????????????????????????????? | | ???????????????????????????????????????????? | | ???????????????????????????????????????????? | | ???????????????????????????????????????????? | | ???????????????????????????????????????????? | | ???????????????????????????????????????????? | | ???????????????????????????????????????????? | +----------------------------------------------------+ Best States ------------- Heat Dissipation 34 Energy Generation 14 Energy Capacity 160 Matter Stores 300 Matter Capacity 300 Sight Range 22 Terrain Scan Density 10 ECM Strength 2 Additional Mass Support 6 Core Shielding 20 Weapon Cycling 15 Evasion (%) 63 Target Analysis 5 Offensive Hacking 10 Defensive Hacking 22 Relay Coupler Types 146 Relay Coupler Value 4 Item Schematics ----------------- EMP Blaster | -8/Materials | Hacked Imp. Cesium-ion Thruster | -7/Factory | Scanalyzed Weapon Cycler | -7/Factory | Scanalyzed Robot Schematics ------------------ None Fabricated ------------ EMP Blaster | x1 | -7/Factory EMP Blaster | x1 | -7/Factory Alien Tech Used ----------------- None Achievements -------------- None Challenges ------------ None Game ------ Seed SalvageImprovedShielding Manual? 0 Play Time 01:43:52 Cumulative 139.0 hours Start 2021.03.17 @ 00:40:20 End 2021.03.19 @ 11:36:23 Sessions 5 Manual Loads 0 Difficulty Rogue Special Mode None Game No. 197 Rogue 173 Adventurer 22 Explorer 2 Win Type - Total 1 Types 1/0/0/0/0/0/0/0/0 Lore% 52 Gallery% 58 Achievement% 45 Wizard Run 0 Options --------- ASCII 0 Keyboard 0 Movement Numpad Keybinds 0 Fullscreen 1 Font 14/SmallcapsGlow Map View 84x54 Tactical HUD 1 Map Filters NONE Filters NONE Steam 1 RUN: 0d8786a5-5cc2-43d2-b9ee-c862d28a4fa4